fUST/lending_fUST_20240811
["ID","MTS","AMOUNT","RATE_DAILY","PERIOD"]
[334643907,1723379371118,-899.4771621,0.00016564,2]
[334643908,1723379376236,305.324743,0.000165,2]
[334643982,1723379438696,-217.87905879,0.00017019,2]
[334643983,1723379438705,-259.18996195,0.00017269,2]
[334643984,1723379438715,-300.0,0.00017378,2]
[334643985,1723379438726,-11287.26454949,0.00017379,2]
[334643986,1723379438909,-2612.40316936,0.00017379,2]
[334644001,1723379440723,-647.23492102,0.00017379,2]
[334644034,1723379443681,-10353.09736013,0.00017379,2]
[334644035,1723379443691,-343.02425125,0.00017389,2]
[334644036,1723379443701,-354.45307919,0.00017403,2]
[334644037,1723379443711,-1989.40201653,0.000176,2]
[334644038,1723379443720,-197.24342933,0.0001774,2]
[334644040,1723379443806,-312.62664492,0.0001774,2]
[334644042,1723379443926,-82.61745854,0.0001774,2]
[334644075,1723379446710,-3727.65140131,0.0001774,2]
[334644076,1723379446720,-5116.33446116,0.00017764,2]
[334644077,1723379446729,-155.1988676,0.0001784,2]
[334644078,1723379446738,-5116.33446116,0.00017941,2]
[334644079,1723379446748,-1000.0,0.00018,18]
[334644080,1723379446758,-1945.19322452,0.00018,2]
[334644081,1723379446767,-10471.59060207,0.00018,2]
[334644082,1723379446777,-263.70779155,0.00018082,2]
[334644084,1723379446786,-500.0,0.00018082,2]
[334644085,1723379446796,-315.87949313,0.00018082,2]
[334644087,1723379446805,-500.0,0.00018082,2]
[334644088,1723379446816,-500.0,0.00018082,2]
[334644089,1723379446825,-626.5083526,0.00018082,2]
[334644090,1723379446835,-500.0,0.00018082,2]
[334644091,1723379446844,-500.0,0.00018082,2]
[334644092,1723379446853,-496.4946152,0.00018082,2]
[334644093,1723379446867,-5116.33446116,0.00018083,2]
[334644094,1723379446876,-3238.07262139,0.00018447,2]
[334644095,1723379446885,-5116.33446116,0.00018478,2]
[334644096,1723379446895,-5116.33446116,0.00018638,2]
[334644097,1723379446906,-500.0,0.00018899,2]
[334644098,1723379446916,-701.40685879,0.00018899,2]
[334644099,1723379446925,-342.46660324,0.00018899,2]
[334644100,1723379446937,-156.49388198,0.00018899,2]
[334644101,1723379446947,-701.40685879,0.00018899,2]
[334644102,1723379446956,-167.94021106,0.00018899,2]
[334644103,1723379446967,-701.40685879,0.00018899,2]
[334644104,1723379446977,-701.40685879,0.00018899,2]
[334644105,1723379446986,-517.77477257,0.00018899,2]
[334644106,1723379447159,-75.84080634,0.00018899,2]
[334644110,1723379814016,161.176436,0.00014247,2]
[334644114,1723379875693,346.63902815,0.00014247,11]
[334644115,1723379949752,1000.0,0.00017,17]
[334644116,1723380065360,273.37336231,9.9e-05,2]
[334644117,1723380080852,273.37336231,9.9e-05,2]
[334644119,1723380282710,160.294877,0.00014247,2]
[334644120,1723380340576,-1163.86062826,0.00015744,2]
[334644121,1723380340602,-305.324744,0.00016156,2]
[334644122,1723380340629,-2364.39233289,0.0001642,2]
[334644123,1723380425102,-300.0,0.00016419,2]
[334644124,1723380425124,-300.0,0.00016419,2]
[334644125,1723380425144,-293.3547574,0.0001642,2]
[334644126,1723380431165,-619.41160945,0.0001642,2]
[334644127,1723380431190,-4526.08855537,0.0001642,2]
[334644128,1723380545088,-1163.86062826,0.00016309,2]
[334644129,1723380545116,-155.90530926,0.00016309,2]
[334644130,1723380545137,-300.0,0.00016419,2]
[334644131,1723380545159,-6011.29748311,0.0001642,2]
[334644132,1723380567109,-580.98311952,0.0001642,2]
[334644133,1723380569086,-35040.45161499,0.00016347,2]
[334644134,1723380569108,-2301.47418395,0.0001642,2]
[334644263,1723380638180,-9115.76432516,0.0001642,2]
[334644264,1723380638199,-229.106794,0.000166,2]
[334644265,1723380638209,-229.106794,0.00016646,2]
[334644266,1723380638219,-300.0,0.0001669,2]
[334644267,1723380638229,-229.106794,0.00016691,2]
[334644268,1723380638242,-229.106794,0.00016737,2]
[334644269,1723380638252,-229.106794,0.00016782,2]
[334644270,1723380638262,-229.106794,0.00016828,2]
[334644271,1723380638272,-229.106794,0.00016873,2]
[334644272,1723380638283,-229.106794,0.00016919,2]
[334644273,1723380638293,-229.106794,0.00016964,2]
[334644274,1723380638303,-229.106794,0.0001701,2]
[334644276,1723380638314,-229.106794,0.00017056,2]
[334644277,1723380638324,-229.106794,0.00017101,2]
[334644279,1723380638334,-229.106794,0.00017147,2]
[334644281,1723380638344,-229.106794,0.00017192,2]
[334644282,1723380638353,-229.106794,0.00017238,2]
[334644284,1723380638364,-229.106794,0.00017283,2]
[334644285,1723380638374,-4888.98930379,0.0001732,2]
[334644286,1723380638384,-229.106794,0.00017329,2]
[334644287,1723380638394,-229.106794,0.00017374,2]
[334644288,1723380638403,-277.38829058,0.00017388,2]
[334644289,1723380638413,-42377.77535747,0.00017389,2]
[334644290,1723380638426,-229.106794,0.0001742,2]
[334644291,1723380638442,-229.106794,0.00017465,2]
[334644292,1723380638452,-2018.58596152,0.0001781,2]
[334644293,1723380638461,-239.72662227,0.0001787,2]
[334644294,1723380638470,-467.55814774,0.0001787,2]
[334644295,1723380638479,-501.31166272,0.0001787,2]
[334644296,1723380638489,-501.31166272,0.0001787,2]
[334644297,1723380638498,-501.31166272,0.0001787,2]
[334644298,1723380638508,-501.31166272,0.0001787,2]
[334644299,1723380638519,-501.31166272,0.0001787,2]
[334644300,1723380638529,-501.31166272,0.0001787,2]
[334644301,1723380638540,-501.31166272,0.0001787,2]
[334644302,1723380638552,-501.31166272,0.0001787,2]
[334644303,1723380638562,-501.31166272,0.0001787,2]
[334644304,1723380638571,-501.31166272,0.0001787,2]
[334644305,1723380638582,-501.31166272,0.0001787,2]
[334644306,1723380638592,-501.31166272,0.0001787,2]
[334644307,1723380638601,-501.31166272,0.0001787,2]
[334644308,1723380638611,-501.31166272,0.0001787,2]
[334644309,1723380638620,-501.31166272,0.0001787,2]
[334644310,1723380638631,-501.31166272,0.0001787,2]
[334644311,1723380638640,-501.31166272,0.0001787,2]
[334644312,1723380638649,-1009.64619377,0.0001787,2]
[334644313,1723380638659,-1009.64619377,0.0001787,2]
[334644314,1723380638668,-1009.64619377,0.0001787,2]
[334644315,1723380638678,-1009.64619377,0.0001787,2]
[334644316,1723380638695,-1009.64619377,0.0001787,2]
[334644317,1723380638705,-1009.64619377,0.0001787,2]
[334644318,1723380638714,-1009.64619377,0.0001787,2]
[334644319,1723380638724,-1009.64619377,0.0001787,2]
[334644320,1723380638734,-1009.64619377,0.0001787,2]
[334644321,1723380638743,-1009.64619377,0.0001787,2]
[334644322,1723380638753,-145621.84836,0.00017871,2]
[334644323,1723380638762,-20777.37607493,0.00017881,2]
[334644324,1723380638772,-1644.63563966,0.00017882,7]
[334644325,1723380638781,-207.01365243,0.0001791,2]
[334644326,1723380638791,-2018.5859615,0.00017927,2]
[334644327,1723380638801,-10000.0,0.00018,18]
[334644328,1723380638810,-2018.5859615,0.00018045,2]
[334644329,1723380638821,-150.112233,0.000181,2]
[334644330,1723380638832,-150.112233,0.000181,2]
[334644331,1723380638847,-2710.33053727,0.00018125,2]
[334644332,1723380638858,-2018.5859615,0.00018162,2]
[334644333,1723380638867,-150.112233,0.000182,2]
[334644334,1723380638877,-2018.5859615,0.00018279,2]
[334644335,1723380638887,-150.112233,0.000183,2]
[334644336,1723380638897,-5240.178669,0.00018302,2]
[334644337,1723380638907,-9651.03918107,0.00018316,2]
[334644338,1723380638916,-54933.1828562,0.00018336,2]
[334644339,1723380638926,-145621.84836,0.00018336,2]
[334644340,1723380638940,-2164.45800918,0.00018346,2]
[334644341,1723380638950,-1950.60861464,0.00018346,2]
[334644342,1723380638960,-2164.45800918,0.00018356,2]
[334644343,1723380638970,-8836.92013464,0.00018356,2]
[334644344,1723380638979,-2280.2888261,0.00018356,3]
[334644345,1723380638990,-420.0,0.00018359,2]
[334644346,1723380639000,-145621.84836,0.00018369,2]
[334644347,1723380639009,-2000.0,0.00018379,2]
[334644348,1723380639019,-57823.05617678,0.00018379,2]
[334644349,1723380639029,-150.112233,0.000184,2]
[334644350,1723380639039,-150.0,0.00018418,2]
[334644351,1723380639048,-145621.84836,0.00018469,2]
[334644352,1723380639058,-208.757592,0.00018479,2]
[334644353,1723380639067,-208.757592,0.00018479,2]
[334644354,1723380639078,-164.427829,0.00018479,2]
[334644355,1723380639087,-164.427829,0.00018479,2]
[334644356,1723380639098,-398.332553,0.00018479,2]
[334644357,1723380639108,-398.332553,0.00018479,2]
[334644358,1723380639118,-1364.59246336,0.00018489,2]
[334644359,1723380639129,-1364.59246336,0.00018489,2]
[334644360,1723380639139,-1717.88440243,0.00018489,2]
[334644361,1723380639150,-5321.67920991,0.00018498,2]
[334644362,1723380639160,-150.112233,0.000185,2]
[334644363,1723380639170,-150.112233,0.000185,2]
[334644364,1723380639179,-150.112233,0.000186,2]
[334644365,1723380639196,-3090.31067256,0.00018629,2]
[334644366,1723380639209,-918.85438638,0.00018657,2]
[334644367,1723380639218,-1765.03360075,0.00018657,2]
[334644368,1723380639227,-277.43269753,0.00018658,2]
[334644369,1723380639238,-1092.45305445,0.00018667,2]
[334644370,1723380639250,-1939.81727783,0.00018667,2]
[334644371,1723380639259,-250.38146921,0.00018667,2]
[334644373,1723380639269,-1993.38782086,0.00018667,2]
[334644375,1723380639279,-810.66153205,0.00018679,2]
[334644377,1723380639289,-1612.06535955,0.00018696,2]
[334644378,1723380639299,-569.05372197,0.00018696,2]
[334644380,1723380639309,-150.112233,0.000187,2]
[334644381,1723380639319,-664.23911189,0.0001872,2]
[334644382,1723380639330,-178.79107403,0.0001872,2]
[334644383,1723380639341,-151.0,0.00018772,2]
[334644384,1723380639351,-850.13586547,0.00018773,2]
[334644385,1723380639361,-833.78545195,0.00018773,2]
[334644386,1723380639371,-850.13586547,0.00018773,2]
[334644387,1723380639381,-268.91441685,0.00018786,2]
[334644388,1723380639391,-508.50872578,0.00018786,2]
[334644389,1723380639400,-309.11885378,0.00018786,2]
[334644390,1723380639410,-174.67965412,0.00018786,2]
[334644391,1723380639420,-816.94684465,0.00018786,3]
[334644392,1723380639430,-210.04889723,0.00018786,2]
[334644393,1723380639442,-400.09746,0.00018786,2]
[334644394,1723380639453,-193.327834,0.0001879,2]
[334644395,1723380639465,-155.212573,0.0001879,2]
[334644396,1723380639476,-151.0,0.0001879,2]
[334644397,1723380639487,-151.0,0.0001879,2]
[334644399,1723380639497,-151.0,0.0001879,2]
[334644400,1723380639509,-636.498476,0.0001879,2]
[334644401,1723380639520,-636.498476,0.0001879,2]
[334644403,1723380639531,-151.0,0.0001879,2]
[334644405,1723380639542,-151.0,0.0001879,2]
[334644407,1723380639554,-151.0,0.0001879,2]
[334644409,1723380639564,-208.82481,0.0001879,2]
[334644411,1723380639574,-151.144009,0.0001879,2]
[334644412,1723380639584,-151.144009,0.0001879,2]
[334644414,1723380639594,-333.116054,0.0001879,2]
[334644416,1723380639603,-333.116054,0.0001879,2]
[334644418,1723380639613,-151.0,0.0001879,2]
[334644420,1723380639622,-151.0,0.0001879,2]
[334644421,1723380639632,-154.76012181,0.00018799,2]
[334644423,1723380639641,-12640.38108741,0.000188,2]
[334644424,1723380639652,-150.112233,0.000188,2]
[334644426,1723380639663,-151.0,0.000188,2]
[334644427,1723380639673,-151.0,0.000188,2]
[334644428,1723380639683,-607.974351,0.000188,2]
[334644429,1723380639698,-607.974351,0.000188,2]
[334644430,1723380639707,-151.0,0.000188,2]
[334644431,1723380639717,-160.901517,0.000188,2]
[334644433,1723380639727,-160.901517,0.000188,2]
[334644435,1723380639737,-155.05697575,0.00018825,2]
[334644437,1723380639747,-209.19870001,0.00018825,2]
[334644438,1723380639757,-532.72454116,0.00018825,2]
[334644440,1723380639766,-319.99782942,0.00018825,2]
[334644442,1723380639776,-218.90057599,0.00018825,2]
[334644443,1723380639785,-154.76012181,0.00018845,2]
[334644445,1723380639795,-534.3800288,0.00018845,2]
[334644447,1723380639804,-154.76012181,0.00018845,2]
[334644448,1723380639814,-404.08727484,0.00018845,2]
[334644450,1723380639823,-154.76012181,0.00018845,2]
[334644451,1723380639832,-414.28019691,0.00018845,2]
[334644452,1723380639842,-200.0,0.00018873,2]
[334644453,1723380639852,-200.0,0.00018873,2]
[334644454,1723380639862,-200.0,0.00018873,2]
[334644455,1723380639872,-200.0,0.00018873,2]
[334644456,1723380639882,-9165.69134611,0.00018888,2]
[334644457,1723380639896,-1573.2413,0.00018888,2]
[334644490,1723380778057,161.176436,0.00014247,2]
[334644494,1723381244278,160.465018,0.00014247,2]
[334644497,1723381533144,-5132.08313753,0.00015712,2]
[334644498,1723381643110,-250.0,0.00015649,2]
[334644499,1723381643137,-250.0,0.00015692,2]
[334644500,1723381643159,-300.0,0.00015709,2]
[334644501,1723381643180,-300.0,0.00015709,2]
[334644502,1723381643201,-4827.9682147,0.0001571,2]
[334644504,1723381712987,160.9681,0.00014247,2]
[334644509,1723381758103,-300.0,0.00015707,2]
[334644510,1723381758125,-2453.83886416,0.00015708,2]
[334644511,1723381768111,-7197.20031691,0.00015708,2]
[334644512,1723381768133,-250.0,0.00015735,2]
[334644513,1723381768155,-2859.91942165,0.00015746,2]
[334644514,1723381768177,-3090.31067256,0.00015751,2]
[334644515,1723381768199,-250.0,0.00015778,2]
[334644516,1723381768229,-250.0,0.00015821,2]
[334644517,1723381768251,-250.0,0.00015864,2]
[334644518,1723381768273,-250.0,0.00015907,2]
[334644519,1723381768294,-633.49874008,0.00015907,2]
[334644520,1723381768315,-250.0,0.0001595,2]
[334644521,1723381768336,-250.0,0.00015993,2]
[334644522,1723381768358,-250.0,0.00016036,2]
[334644523,1723381768380,-5249.93157373,0.00016049,2]
[334644524,1723381770109,-13894.18413235,0.00016049,2]
[334644686,1723381840187,-154.77557542,0.00016038,2]
[334644687,1723381840197,-506.42477862,0.00016038,2]
[334644757,1723381846160,-1500.0,0.00015954,2]
[334644759,1723381846170,-339.80685446,0.00016038,2]
[334644760,1723381846179,-2078.51772722,0.00016049,2]
[334644762,1723381846221,-1172.86267734,0.00016049,2]
[334644763,1723381846233,-1175.2734791,0.00016049,2]
[334644764,1723381846282,-1329.23041026,0.00016049,2]
[334644765,1723381846291,-250.0,0.00016079,2]
[334644766,1723381846301,-1612.06535955,0.00016095,2]
[334644767,1723381846310,-300.0,0.00016107,2]
[334644768,1723381846320,-300.0,0.00016107,2]
[334644769,1723381846329,-8679.59280785,0.00016108,2]
[334644770,1723381846338,-250.0,0.00016121,2]
[334644771,1723381846347,-250.0,0.00016164,2]
[334644772,1723381846357,-250.0,0.00016207,2]
[334644773,1723381846367,-250.0,0.0001625,2]
[334644774,1723381846376,-250.0,0.00016293,2]
[334644775,1723381846387,-250.0,0.00016336,2]
[334644776,1723381846396,-413.29975831,0.00016347,2]
[334644777,1723381846406,-250.0,0.00016379,2]
[334644778,1723381846415,-250.0,0.00016422,2]
[334644779,1723381846424,-250.0,0.00016465,2]
[334644780,1723381846433,-1000.0,0.00017,6]
[334644781,1723381846444,-3219.5839417,0.00017279,2]
[334644782,1723381846455,-200.48393973,0.00017401,2]
[334644783,1723381846465,-499.99999999,0.00017401,2]
[334644784,1723381846474,-500.0,0.00017401,2]
[334644785,1723381846484,-500.0,0.00017401,2]
[334644786,1723381846493,-172.34367574,0.00017401,2]
[334644787,1723381846505,-352.65665323,0.00017401,2]
[334644788,1723381846515,-500.0,0.00017401,2]
[334644789,1723381846524,-500.0,0.00017401,2]
[334644790,1723381846533,-500.0,0.00017401,2]
[334644791,1723381846542,-500.0,0.00017401,2]
[334644792,1723381846553,-207.7516841,0.00017401,2]
[334644793,1723381846563,-500.0,0.00017401,2]
[334644794,1723381846572,-500.0,0.00017401,2]
[334644795,1723381846582,-500.0,0.00017401,2]
[334644796,1723381846592,-500.0,0.00017401,2]
[334644797,1723381846601,-500.0,0.00017401,2]
[334644798,1723381846610,-500.0,0.00017401,2]
[334644799,1723381846620,-500.0,0.00017401,2]
[334644800,1723381846632,-500.0,0.00017401,2]
[334644801,1723381846642,-500.0,0.00017401,2]
[334644802,1723381846653,-500.0,0.00017401,2]
[334644803,1723381846662,-500.0,0.00017401,2]
[334644804,1723381846675,-500.0,0.00017401,2]
[334644805,1723381846685,-500.0,0.00017401,2]
[334644806,1723381846697,-500.0,0.00017401,2]
[334644807,1723381846709,-500.0,0.00017401,2]
[334644808,1723381846719,-362.61830314,0.00017401,2]
[334644809,1723381846728,-500.0,0.00017401,2]
[334644810,1723381846738,-154.76012181,0.00017555,2]
[334644811,1723381846747,-420.0,0.00017608,2]
[334644812,1723381846757,-420.0,0.00017718,2]
[334644813,1723381846767,-167.80863559,0.0001787,2]
[334644814,1723381846778,-500.0,0.0001787,2]
[334644815,1723381846788,-327.29070342,0.0001787,2]
[334644816,1723381846797,-500.0,0.0001787,2]
[334644817,1723381846806,-500.0,0.0001787,2]
[334644818,1723381846817,-500.0,0.0001787,2]
[334644819,1723381846828,-500.0,0.0001787,2]
[334644820,1723381846839,-500.0,0.0001787,2]
[334644821,1723381846849,-500.0,0.0001787,2]
[334644822,1723381846859,-500.0,0.0001787,2]
[334644823,1723381846869,-500.0,0.0001787,2]
[334644824,1723381846878,-500.0,0.0001787,2]
[334644825,1723381846887,-500.0,0.0001787,2]
[334644826,1723381846896,-500.0,0.0001787,2]
[334644827,1723381846906,-500.0,0.0001787,2]
[334644828,1723381846915,-500.0,0.0001787,2]
[334644829,1723381846925,-500.0,0.0001787,2]
[334644830,1723381846933,-500.0,0.0001787,2]
[334644831,1723381846943,-500.0,0.0001787,2]
[334644832,1723381846953,-337.86711207,0.0001787,2]
[334644833,1723381846962,-500.0,0.0001787,2]
[334644834,1723381846971,-500.0,0.0001787,2]
[334644835,1723381846980,-500.0,0.0001787,2]
[334644836,1723381846989,-500.0,0.0001787,2]
[334644837,1723381846998,-500.0,0.0001787,2]
[334644838,1723381847009,-500.0,0.0001787,2]
[334644839,1723381847018,-500.0,0.0001787,2]
[334644840,1723381847028,-71440.99664949,0.00017871,2]
[334644843,1723382181597,160.465021,0.00014247,2]
[334644846,1723382460747,306.844932,0.00014687,2]
[334644847,1723382536527,24900.0,0.00014684,2]
[334644848,1723382564530,250.0,0.00015004,2]
[334644849,1723382635559,4727.61502074,0.00015004,2]
[334644851,1723382650907,160.9681,0.00014247,2]
[334644854,1723382748153,-250.0,0.00015045,2]
[334644855,1723382748176,-250.0,0.00015086,2]
[334644856,1723382748199,-250.0,0.00015127,2]
[334644857,1723382748222,-250.0,0.00015168,2]
[334644858,1723382748263,-250.0,0.00015209,2]
[334644859,1723382748288,-250.0,0.00015251,2]
[334644860,1723382748313,-250.0,0.00015292,2]
[334644861,1723382748337,-250.0,0.00015333,2]
[334644862,1723382748361,-250.0,0.00015374,2]
[334644863,1723382748383,-250.0,0.00015415,2]
[334644864,1723382748405,-250.0,0.00015456,2]
[334644865,1723382748428,-250.0,0.00015497,2]
[334644866,1723382748449,-580.98311951,0.00015531,2]
[334644867,1723382748472,-250.0,0.00015539,2]
[334644868,1723382748498,-250.0,0.0001558,2]
[334644869,1723382748524,-250.0,0.00015621,2]
[334644870,1723382748547,-300.0,0.00015643,2]
[334644871,1723382748571,-300.0,0.00015643,2]
[334644872,1723382748594,-8122.23540695,0.00015644,2]
[334644873,1723382748618,-250.0,0.00015662,2]
[334644874,1723382748643,-250.0,0.00015703,2]
[334644875,1723382748667,-35040.45161499,0.00015709,2]
[334644876,1723382748692,-250.0,0.00015744,2]
[334644877,1723382748717,-156.96173825,0.00015746,2]
[334644878,1723382748741,-601.3570708,0.00015751,2]
[334644879,1723382748763,-728.15079492,0.00015751,2]
[334644880,1723382748787,-728.15079492,0.00015751,2]
[334644881,1723382748811,-250.0,0.00015786,2]
[334644882,1723382748835,-154.76012181,0.00015851,2]
[334644883,1723382748858,-154.76012181,0.00015851,2]
[334644884,1723382748880,-301.25996446,0.00015954,2]
[334644885,1723382748903,-245.00380538,0.00015954,2]
[334644886,1723382748926,-180.63105164,0.00015954,2]
[334644887,1723382748953,-180.63105164,0.00016038,2]
[334644888,1723382748975,-492.86524914,0.00016095,2]
[334644889,1723382748998,-932.99527997,0.0001611,2]
[334644890,1723382749019,-154.76012181,0.00017019,2]
[334644891,1723382749041,-420.0,0.00017109,2]
[334644892,1723382749066,-420.0,0.00017207,2]
[334644893,1723382749088,-651.40203368,0.00017277,2]
[334644894,1723382749110,-500.0,0.00017277,2]
[334644895,1723382749131,-2644.18696957,0.00017278,2]
[334644896,1723382749152,-952.621668,0.00017389,2]
[334644897,1723382749175,-159.00402065,0.00017403,2]
[334644898,1723382749203,-150.0,0.00017665,2]
[334644899,1723382749225,-5321.67920991,0.00017734,2]
[334644900,1723382749249,-320.15063993,0.0001784,7]
[334644901,1723382847155,-301.25996446,0.00015751,2]
[334644902,1723382847177,-517.57417416,0.00017389,7]
[334644903,1723382847199,-5627.22252475,0.00017403,2]
[334644908,1723382969107,-154.89151104,0.0001571,2]
[334644909,1723382970096,-1109.82295728,0.00017379,2]
[334644910,1723382970118,-300.0,0.00017388,2]
[334644911,1723382970139,-300.0,0.00017388,2]
[334644912,1723382970162,-1323.42233633,0.00017389,2]
[334644995,1723383032975,-2122.66131162,0.00016697,2]
[334644997,1723383032987,-2805.24748257,0.00016697,2]
[334645064,1723383038924,-19972.09120581,0.00016697,2]
[334645065,1723383038934,-7007.90701187,0.00017019,2]
[334645066,1723383038945,-2126.37973248,0.00017379,2]
[334645067,1723383038955,-300.0,0.00017388,2]
[334645068,1723383038966,-300.0,0.00017388,2]
[334645069,1723383038976,-1026.28770386,0.00017389,2]
[334645092,1723383040330,-41351.48765361,0.00017389,2]
[334645093,1723383040340,-2712.3231801,0.0001774,2]
[334645094,1723383040350,-229.10349239,0.00017829,2]
[334645095,1723383040359,-500.0,0.00017829,2]
[334645096,1723383040368,-500.0,0.00017829,2]
[334645097,1723383040378,-500.0,0.00017829,2]
[334645098,1723383040387,-500.0,0.00017829,2]
[334645099,1723383040396,-500.0,0.00017829,2]
[334645100,1723383040405,-500.0,0.00017829,2]
[334645101,1723383040414,-500.0,0.00017829,2]
[334645102,1723383040424,-500.0,0.00017829,2]
[334645103,1723383040434,-500.0,0.00017829,2]
[334645104,1723383040443,-500.0,0.00017829,2]
[334645105,1723383040453,-500.0,0.00017829,2]
[334645106,1723383040462,-500.0,0.00017829,2]
[334645107,1723383040471,-500.0,0.00017829,2]
[334645108,1723383040480,-500.0,0.00017829,2]
[334645109,1723383040489,-500.0,0.00017829,2]
[334645110,1723383040499,-500.0,0.00017829,2]
[334645111,1723383040508,-500.0,0.00017829,2]
[334645112,1723383040518,-500.0,0.00017829,2]
[334645113,1723383040527,-500.0,0.00017829,2]
[334645114,1723383040537,-227.45907198,0.00017829,2]
[334645115,1723383040546,-500.0,0.00017829,2]
[334645116,1723383040555,-500.0,0.00017829,2]
[334645117,1723383040564,-500.0,0.00017829,2]
[334645118,1723383040573,-116280.810772,0.0001783,2]
[334645119,1723383040583,-154.79103211,0.0001784,2]
[334645120,1723383040592,-2712.32318007,0.00017862,2]
[334645121,1723383040602,-5203.5035593,0.00017879,2]
[334645122,1723383040611,-3090.31067256,0.00017882,2]
[334645123,1723383040622,-2000.0,0.000179,2]
[334645124,1723383040631,-27466.59142811,0.00017979,2]
[334645125,1723383040641,-5370.24674273,0.00017979,2]
[334645165,1723383046364,-1000.0,0.00017979,2]
[334645166,1723383046376,-61484.57661919,0.00017979,2]
[334645169,1723383233276,160.539455,0.00014247,2]
[334645170,1723383560500,273.37336231,9.9e-05,2]
[334645171,1723383575901,273.37336231,9.9e-05,2]
[334645172,1723383591912,273.37336231,9.9e-05,2]
[334645173,1723383607794,273.37336231,9.9e-05,2]
[334645174,1723383623830,273.37336231,9.9e-05,2]
[334645175,1723383624749,233.872977,0.00017019,7]
[334645176,1723383640268,273.37336231,9.9e-05,2]
[334645179,1723383680698,319.25972832,0.00017019,11]
[334645181,1723383796356,160.9681,0.00014247,2]
[334645182,1723383978022,306.084838,0.00014626,2]
[334645183,1723383980953,24900.0,0.00014626,2]
[334645188,1723384042191,-250.0,0.00015146,2]
[334645189,1723384042215,-250.0,0.00015188,2]
[334645190,1723384042243,-250.0,0.0001523,2]
[334645191,1723384042267,-250.0,0.00015271,2]
[334645192,1723384042290,-250.0,0.00015313,2]
[334645193,1723384042312,-250.0,0.00015354,2]
[334645194,1723384042336,-250.0,0.00015396,2]
[334645195,1723384042359,-250.0,0.00015437,2]
[334645196,1723384042383,-250.0,0.00015479,2]
[334645197,1723384042407,-250.0,0.0001552,2]
[334645198,1723384042430,-250.0,0.00015562,2]
[334645199,1723384042452,-250.0,0.00015603,2]
[334645200,1723384042475,-250.0,0.00015645,2]
[334645201,1723384042498,-250.0,0.00015686,2]
[334645202,1723384042519,-2280.2888261,0.00015708,3]
[334645203,1723384042541,-2686.9037494,0.0001571,2]
[334645204,1723384053145,-1717.88440243,0.0001571,2]
[334645205,1723384053169,-4554.64266728,0.0001571,2]
[334645206,1723384153447,-300.0,0.00015707,2]
[334645207,1723384153470,-300.0,0.00015707,2]
[334645208,1723384153493,-2449.63732326,0.00015708,2]
[334645209,1723384154116,-1533.62123835,0.00015708,2]
[334645295,1723384233708,-300.0,0.00015707,2]
[334645297,1723384233718,-300.0,0.00015707,2]
[334645299,1723384233728,-340.79917505,0.00015708,2]
[334645302,1723384233795,160.539455,0.00014247,2]
[334645327,1723384240594,-4512.86239798,0.00015708,2]
[334645329,1723384240604,-2710.33053727,0.00015708,2]
[334645330,1723384240614,-810.33332245,0.00015708,2]
[334645331,1723384240623,-899.4771621,0.00015708,2]
[334645332,1723384240632,-912.76636685,0.00015708,2]
[334645333,1723384240642,-250.0,0.00015734,2]
[334645334,1723384240652,-154.76012181,0.00015751,2]
[334645335,1723384240661,-250.0,0.00015777,2]
[334645336,1723384240671,-250.0,0.0001582,2]
[334645337,1723384240680,-250.0,0.00015863,2]
[334645338,1723384240689,-250.0,0.00015906,2]
[334645339,1723384240699,-250.0,0.00015949,2]
[334645340,1723384240708,-1765.03360075,0.00015952,2]
[334645341,1723384240718,-1765.03360075,0.00015952,2]
[334645342,1723384240727,-2164.45800918,0.00015952,2]